bitfinex/quotes_SOLUSD_20250722
["timestamp","ask_amount","ask_price","bid_price","bid_amount"]
[1753193548390,12.75459395,199.31,199.27,0.69]
[1753193548561,12.75459395,199.3,199.27,0.69]
[1753193548759,12.75459395,199.29,199.22,29.53927792]
[1753193548959,26.06,199.35,199.22,29.53927792]
[1753193548960,17.77265898,199.28,199.24,0.69]
[1753193549275,17.56322761,199.28,199.25,39.6]
[1753193549480,5.01784635,199.29,199.26,0.69]
[1753193549785,0.41,199.34,199.27,0.69]
[1753193549786,5.01655463,199.34,199.27,0.69]
[1753193550357,12.75459395,199.28,199.24,0.69]
[1753193550561,43.5579412,199.34,199.26,39.58]
[1753193550760,12.75459395,199.28,199.26,39.58]
[1753193550988,17.7726078,199.29,199.26,39.58]
[1753193551290,3.58903894,199.28,199.26,40.27]
[1753193551478,3.58903894,199.27,199.26,40.27]
[1753193552028,12.75459395,199.29,199.26,40.27]
[1753193552723,12.75459395,199.28,199.22,26.69]
[1753193552884,12.75459395,199.25,199.23,39.56]
[1753193553090,12.75459395,199.28,199.24,0.69]
[1753193553393,17.77270056,199.28,199.25,0.69]
[1753193554208,12.75459395,199.3,199.26,0.69]
[1753193554412,12.75459395,199.3,199.27,39.56]
[1753193554715,12.75459395,199.33,199.28,0.69]
[1753193554904,12.81459395,199.35,199.28,13.44459395]
[1753193555094,12.81459395,199.35,199.29,0.69]
[1753193555095,17.83093214,199.35,199.29,0.69]
[1753193555301,17.83093214,199.35,199.29,13.44459395]
[1753193555502,17.83093214,199.35,199.29,0.69]
[1753193555702,17.83093214,199.35,199.29,13.44459395]
[1753193555900,17.83093214,199.35,199.29,0.69]
[1753193556105,12.75459395,199.34,199.29,0.69]
[1753193556597,12.75459395,199.34,199.3,0.69]
[1753193556793,12.75459395,199.34,199.31,39.52]
[1753193557003,17.77133145,199.34,199.31,40.21]
[1753193557293,12.81459395,199.35,199.32,0.69]
[1753193557499,0.06,199.35,199.32,89.19]
[1753193557692,12.75459395,199.34,199.32,88.5]
[1753193558012,5.07634745,199.35,199.32,88.5]
[1753193558013,12.75459395,199.33,199.32,88.5]
[1753193558216,13.16459395,199.33,199.25,88.5]
[1753193558405,12.75459395,199.28,199.26,39.52]
[1753193558598,12.75459395,199.29,199.26,128.71]
[1753193558824,12.75459395,199.3,199.27,0.69]
[1753193558999,17.77284625,199.28,199.26,39.52]
[1753193559329,12.75459395,199.27,199.26,39.52]
[1753193560416,12.75459395,199.27,199.2,0.69]
[1753193560651,12.75459395,199.21,199.16,0.69]
[1753193560937,26.0,199.25,199.17,39.48]
[1753193561241,12.75459395,199.21,199.17,40.17]
[1753193561446,12.75459395,199.21,199.18,0.69]
[1753193561609,5.01907247,199.24,199.19,0.69]
[1753193561812,5.01882723,199.25,199.2,0.69]
[1753193562010,17.77342118,199.25,199.21,40.17]
[1753193562206,5.01655463,199.34,199.24,12.75459395]
[1753193562429,5.01655463,199.34,199.26,29.53927792]
[1753193562627,12.75459395,199.33,199.27,13.44459395]
[1753193562929,12.75459395,199.33,199.28,0.69]
[1753193563122,12.81459395,199.35,199.3,16.78468397]
[1753193563329,0.06,199.35,199.31,0.69]
[1753193563543,0.06,199.35,199.32,0.69]
[1753193563839,0.06,199.35,199.33,40.15]
[1753193564218,12.75459395,199.34,199.33,39.46]
[1753193564539,12.75459395,199.34,199.27,89.19]
[1753193564707,12.75459395,199.3,199.27,0.69]
[1753193565039,12.75459395,199.3,199.28,39.46]
[1753193565237,17.77240718,199.29,199.22,26.69]
[1753193565419,12.75459395,199.27,199.25,39.46]
[1753193566229,12.75459395,199.26,199.25,39.46]
[1753193568934,12.75459395,199.26,199.22,0.69]
[1753193569141,12.75459395,199.24,199.23,39.42]
[1753193569343,17.77366642,199.24,199.22,0.69]
[1753193569526,17.77366642,199.24,199.23,39.42]
[1753193569930,12.75459395,199.25,199.23,40.1]
[1753193570570,12.75459395,199.25,199.24,0.68]
[1753193570754,12.75459395,199.25,199.2,0.68]
[1753193571069,68.64713259,199.31,199.17,38.75459395]
[1753193571070,12.75459395,199.21,199.17,89.18]
[1753193571246,12.75459395,199.2,199.18,39.4]
[1753193571431,12.75459395,199.21,199.19,0.68]
[1753193572244,12.75459395,199.21,199.15,59.59927792]
[1753193572245,12.75459395,199.2,199.15,89.18]
[1753193572438,17.56587201,199.25,199.09,1.6553]
[1753193572439,12.75459395,199.16,199.14,39.4]
[1753193572640,12.75459395,199.15,199.14,39.4]
[1753193573443,17.77593464,199.15,199.14,39.4]
[1753193574559,12.54831099,199.23,199.14,40.08]
[1753193574763,12.75459395,199.21,199.15,0.68]
[1753193574964,12.75459395,199.21,199.15,13.43459395]
[1753193575269,12.75459395,199.21,199.16,0.68]
[1753193575460,5.02058439,199.18,199.17,39.38]
[1753193575661,26.0,199.23,199.17,39.38]
[1753193575662,5.02033138,199.2,199.17,39.38]
[1753193575855,12.75459395,199.22,199.18,0.68]
[1753193576162,12.75459395,199.2,199.17,39.38]
[1753193576373,12.75459395,199.21,199.17,40.06]
[1753193576546,5.01957634,199.22,199.18,0.68]
[1753193576865,5.01957634,199.22,199.19,0.68]
[1753193577043,1.6226,199.3,199.2,0.68]
[1753193577044,12.75459395,199.23,199.2,0.68]
[1753193577246,17.56587201,199.25,199.21,39.36]
[1753193577451,12.75459395,199.23,199.21,39.36]
[1753193578075,12.75459395,199.22,199.21,39.36]
[1753193578567,12.75459395,199.22,199.15,0.68]
[1753193578568,26.0,199.22,199.15,0.68]
[1753193578769,12.75459395,199.19,199.17,39.36]
[1753193579064,12.75459395,199.18,199.12,89.21]
[1753193579265,12.75459395,199.17,199.13,39.36]
[1753193579467,12.75459395,199.19,199.14,0.68]
[1753193579668,12.75459395,199.19,199.15,16.78468397]
[1753193579856,5.01982832,199.21,199.16,40.02]
[1753193580049,17.77442227,199.21,199.16,39.34]
[1753193580366,12.75459395,199.23,199.18,16.78468397]
[1753193580662,12.75459395,199.27,199.26,88.5]
[1753193580868,12.75459395,199.27,199.26,127.84]
[1753193581043,12.75459395,199.27,199.26,88.5]
[1753193581244,13.16459395,199.27,199.26,62.46429119]
[1753193581440,17.7729108,199.27,199.26,62.46429119]
[1753193581673,18.1829108,199.27,199.26,37.32108473]
[1753193581966,17.7729108,199.27,199.26,11.18164376]
[1753193582154,26.0,199.24,199.22,39.34]
[1753193582350,26.0,199.24,199.22,127.84]
[1753193582551,17.56410899,199.27,199.22,127.84]
[1753193582552,12.75459395,199.26,199.23,0.68]
[1753193582752,12.75459395,199.26,199.24,0.68]
[1753193582952,12.75459395,199.25,199.24,39.32]
[1753193583450,17.77341452,199.25,199.24,39.32]
[1753193583868,17.77341452,199.25,199.24,62.95742701]
[1753193584553,12.75459395,199.25,199.24,62.95742701]
[1753193584760,17.77341452,199.25,199.24,62.95742701]
[1753193584968,5.01882057,199.25,199.24,62.95742701]
[1753193585266,17.77341452,199.25,199.24,62.95742701]
[1753193585975,5.01882057,199.25,199.24,102.25742701]
[1753193586276,12.54338566,199.31,199.24,102.93742701]
[1753193586463,12.75459395,199.27,199.24,102.93742701]
[1753193586657,12.75459395,199.25,199.24,102.25742701]
[1753193586967,12.75459395,199.25,199.24,62.95742701]
[1753193587271,12.75459395,199.25,199.24,102.25742701]
[1753193587577,17.77341452,199.25,199.24,102.25742701]
[1753193588365,17.77341452,199.25,199.24,62.95742701]
[1753193589066,5.01882057,199.25,199.24,102.23742701]
[1753193589265,17.77341452,199.25,199.24,102.23742701]
[1753193589458,12.75459395,199.25,199.24,102.23742701]
[1753193589662,12.75459395,199.25,199.24,102.21742701]
[1753193589663,17.77341452,199.25,199.24,102.21742701]
[1753193590867,26.0,199.3,199.27,50.20283306]
[1753193591071,12.75459395,199.28,199.27,50.20283306]
[1753193591278,12.75459395,199.28,199.27,89.46283306]
[1753193591460,31.01756146,199.3,199.27,89.46283306]
[1753193591662,17.77265898,199.28,199.27,89.46283306]
[1753193591862,17.77265898,199.28,199.27,50.20283306]
[1753193593061,5.01806503,199.28,199.27,50.20283306]
[1753193593262,13.48039094,199.28,199.27,50.20283306]
[1753193593766,26.43555352,199.28,199.17,26.71]
[1753193593968,17.56322761,199.28,199.18,56.70468397]
[1753193594171,8.46232591,199.25,199.19,0.68]
[1753193594375,8.46232591,199.25,199.2,39.24]
[1753193594566,8.46232591,199.25,199.21,0.68]
[1753193594762,8.46232591,199.25,199.22,39.22]
[1753193594967,8.46232591,199.23,199.22,39.22]
[1753193595665,13.4816503,199.23,199.22,39.22]
[1753193595868,12.54516258,199.28,199.22,39.9]
[1753193596181,8.46232591,199.25,199.22,39.9]
[1753193596379,8.46232591,199.25,199.23,0.68]
[1753193596558,13.48041655,199.28,199.24,39.9]
[1753193596754,8.46232591,199.27,199.24,39.9]
[1753193597064,8.46232591,199.26,199.24,39.22]
[1753193597264,8.46232591,199.25,199.24,39.22]
[1753193597774,26.0,199.22,199.17,0.03]
[1753193597961,8.46232591,199.19,199.18,39.2]
[1753193598166,8.46232591,199.19,199.18,39.9]
[1753193598363,8.46232591,199.19,199.18,39.2]
[1753193598558,8.46232591,199.2,199.18,39.9]
[1753193598784,8.46232591,199.19,199.17,0.03]
[1753193598960,8.46232591,199.18,199.17,39.23]
[1753193599773,13.4829103,199.18,199.17,39.23]
[1753193600665,8.46232591,199.18,199.17,39.93]
[1753193600861,26.0,199.25,199.17,39.93]
[1753193601170,8.46232591,199.21,199.17,39.93]
[1753193601373,8.46232591,199.19,199.17,39.93]
[1753193601575,8.46232591,199.22,199.18,0.7]
[1753193601783,5.01982832,199.21,199.18,0.7]
[1753193601972,8.46232591,199.24,199.19,0.7]
[1753193602173,8.46232591,199.22,199.2,39.18]
[1753193602678,8.46232591,199.23,199.2,39.88]
[1753193602980,31.01882057,199.25,199.2,74.6440497]
[1753193603182,8.46232591,199.22,199.2,74.6440497]
[1753193603781,8.46232591,199.23,199.21,0.7]
[1753193603979,8.46232591,199.23,199.2,73.9440497]
[1753193604174,5.0192883,199.24,199.22,39.16]
[1753193604388,8.46232591,199.23,199.2,34.7640497]
[1753193604561,8.46232591,199.21,199.17,34.7940497]
[1753193604764,8.46232591,199.18,199.17,0.03]
[1753193605882,31.01882057,199.25,199.17,43.95637561]
[1753193606072,8.46232591,199.22,199.17,35.4940497]
[1753193606276,8.46232591,199.22,199.18,0.7]
[1753193606484,8.46232591,199.22,199.19,39.14]
[1753193606690,8.46232591,199.2,199.19,39.14]
[1753193606983,8.46232591,199.21,199.19,73.9040497]
[1753193607296,8.46232591,199.2,199.19,73.9040497]
[1753193607872,13.48240623,199.2,199.19,73.9040497]
[1753193608084,5.02008032,199.2,199.19,73.9040497]
[1753193608387,5.0198704,199.21,199.19,74.6040497]
[1753193608596,5.0198704,199.21,199.2,0.7]
[1753193609291,5.01960687,199.22,199.2,35.4640497]
[1753193609478,5.01960687,199.22,199.21,39.82]
[1753193610080,13.48170533,199.23,199.21,39.82]
[1753193610276,8.46232591,199.24,199.22,0.7]
[1753193610475,0.06,199.27,199.23,48.28232591]
[1753193610676,0.06,199.31,199.26,8.46232591]
[1753193611000,0.06,199.31,199.3,25.24700988]
[1753193611176,5.01656367,199.34,199.3,34.7640497]
[1753193611381,8.46232591,199.32,199.31,39.1]
[1753193611586,12.1187746,199.32,199.31,39.1]
[1753193611894,3.65644869,199.32,199.31,39.1]
[1753193612095,5.01705799,199.32,199.31,39.8]
[1753193612403,8.67645211,199.32,199.31,39.8]
[1753193612613,8.46232591,199.34,199.31,39.8]
[1753193612911,13.53866806,199.35,199.32,0.7]
[1753193613107,0.06,199.35,199.33,39.8]
[1753193613409,0.06,199.35,199.34,0.7]
[1753193614602,0.06,199.35,199.34,31.46521997]
[1753193615299,0.06,199.35,199.34,96.28926967]
[1753193615482,0.06,199.35,199.34,91.27271504]
[1753193615678,0.06,199.35,199.34,129.83105958]
[1753193615999,0.06,199.35,199.34,134.84761421]
[1753193616577,0.06,199.39,199.38,16.78468397]
[1753193616774,0.1,199.46,199.38,99.55261439]
[1753193616981,0.1,199.46,199.43,25.24700988]
[1753193617207,0.1,199.46,199.44,39.04]
[1753193617596,0.1,199.46,199.44,39.74]
[1753193617900,5.11367665,199.46,199.44,39.74]
[1753193618099,5.11367665,199.46,199.45,39.04]
[1753193618308,0.1,199.46,199.45,39.04]
[1753193618496,5.11353654,199.46,199.45,39.04]
[1753193618696,0.1,199.46,199.42,9.16232591]
[1753193619002,0.1,199.46,199.43,39.74]
[1753193619202,5.11364522,199.46,199.43,0.7]
[1753193619407,13.57597113,199.46,199.44,39.02]
[1753193619606,13.57597113,199.46,199.4,25.24700988]
[1753193619812,13.57597113,199.46,199.41,39.02]
[1753193619996,13.57597113,199.46,199.4,25.24700988]
[1753193620200,13.57597113,199.46,199.41,39.0]
[1753193620513,13.57597113,199.46,199.42,39.0]
[1753193620810,26.1098125,199.46,199.42,39.0]
[1753193621115,26.1098125,199.46,199.34,12.95652366]
[1753193621116,26.0,199.44,199.43,39.0]
[1753193621298,34.46232591,199.44,199.43,39.0]
[1753193622093,35.05232591,199.44,199.41,39.0]
[1753193622306,8.46232591,199.42,199.41,39.0]
[1753193622509,13.47686808,199.42,199.41,39.0]
[1753193623315,5.01454217,199.42,199.41,39.0]
[1753193623621,13.47686808,199.42,199.41,39.0]
[1753193623996,13.47686808,199.42,199.34,6.0368]
[1753193623997,26.60322351,199.42,199.35,38.98]
[1753193624307,8.46232591,199.36,199.32,0.7]
[1753193624517,8.46232591,199.43,199.35,8.46232591]
[1753193624721,8.46232591,199.43,199.36,39.68]
[1753193625034,8.46232591,199.42,199.36,48.14232591]
[1753193625197,8.46232591,199.44,199.37,9.16232591]
[1753193625391,8.46232591,199.44,199.37,8.46232591]
[1753193625734,8.46232591,199.42,199.38,0.7]
[1753193626022,17.5482577,199.45,199.39,38.96]
[1753193626023,8.46232591,199.43,199.39,38.96]
[1753193626408,8.46232591,199.43,199.39,39.66]
[1753193626605,5.01454217,199.42,199.39,38.96]
[1753193626927,8.46232591,199.4,199.35,38.96]
[1753193627131,8.46232591,199.39,199.35,38.96]
[1753193627304,8.46232591,199.39,199.35,39.66]
[1753193627511,8.46232591,199.39,199.36,0.71]
[1753193628012,8.46232591,199.41,199.37,0.71]
[1753193628217,13.47686808,199.42,199.38,39.65]
[1753193628404,8.46232591,199.39,199.38,38.94]
[1753193628606,13.47762256,199.39,199.38,38.94]
[1753193628835,5.01529665,199.39,199.38,38.94]
[1753193629001,34.46232591,199.43,199.38,39.65]
[1753193629209,5.01425971,199.44,199.39,9.17232591]
[1753193629523,0.1,199.46,199.42,8.46232591]
[1753193629826,0.1,199.46,199.44,8.46232591]
[1753193630032,0.1,199.46,199.43,48.11232591]
[1753193630210,0.1,199.46,199.45,8.46232591]
[1753193630410,0.1,199.46,199.44,9.17232591]
[1753193630657,0.1,199.46,199.45,38.92]
[1753193630935,0.1,199.46,199.45,39.63]
[1753193631432,0.1,199.46,199.45,38.92]
[1753193632007,5.11353654,199.46,199.45,38.92]
[1753193632203,5.11353654,199.46,199.45,64.87700988]
[1753193632204,0.1,199.46,199.45,64.87700988]
[1753193632615,0.06,199.5,199.46,46.84468397]
[1753193632805,0.06,199.5,199.49,8.46232591]
[1753193633008,0.06,199.5,199.49,64.14700988]
[1753193633225,12.58645061,199.58,199.49,94.91700988]
[1753193633226,13.532848,199.58,199.49,94.91700988]
[1753193633426,8.46232591,199.55,199.5,0.71]
[1753193633931,5.07052209,199.58,199.51,9.17232591]
[1753193634130,13.532848,199.58,199.52,38.9]
[1753193634740,8.46232591,199.57,199.52,38.9]
[1753193635047,8.46232591,199.54,199.52,38.9]
[1753193635245,8.46232591,199.55,199.52,38.9]
[1753193635442,8.46232591,199.57,199.53,0.71]
[1753193635836,5.07052209,199.58,199.54,0.71]
[1753193636147,5.07052209,199.58,199.55,39.59]
[1753193636352,0.06,199.58,199.56,38.88]
[1753193636533,0.06,199.58,199.56,39.59]
[1753193636735,5.07056051,199.58,199.56,38.88]
[1753193637642,8.46232591,199.57,199.51,8.46232591]
[1753193637954,5.07056051,199.58,199.52,48.03232591]
[1753193638258,0.06,199.58,199.53,8.46232591]
[1753193638426,0.06,199.58,199.54,9.17232591]
[1753193638628,0.06,199.58,199.55,47.30232591]
[1753193638855,0.06,199.58,199.55,48.01232591]
[1753193639155,0.06,199.58,199.55,39.55]
[1753193639459,0.06,199.58,199.56,0.71]
[1753193639825,0.06,199.58,199.53,15.35662591]
[1753193640034,8.46232591,199.56,199.54,38.84]
[1753193640257,8.46232591,199.55,199.54,38.84]
[1753193640557,8.46232591,199.56,199.54,38.84]
[1753193640743,5.01127536,199.55,199.54,38.84]
[1753193640951,13.47360127,199.55,199.54,38.84]
[1753193641143,13.47360127,199.55,199.53,88.5]
[1753193641361,8.46232591,199.54,199.53,88.5]
[1753193641546,13.47337527,199.56,199.53,89.21]
[1753193641743,5.01104936,199.56,199.53,88.5]
[1753193641973,5.01104936,199.56,199.53,127.32]
[1753193642474,0.06,199.58,199.53,127.32]
[1753193642475,25.34,199.6,199.55,14.65552591]
[1753193642766,0.1,199.66,199.61,26.0]
[1753193642948,0.1,199.66,199.65,36.29472591]
[1753193643148,0.1,199.66,199.65,75.11472591]
[1753193643949,0.1,199.66,199.61,8.04822535]
[1753193643950,0.76,199.66,199.62,16.78468397]
[1753193644154,0.1,199.66,199.65,38.52232591]
[1753193644373,0.1,199.66,199.65,47.3455605]
[1753193644757,0.1,199.66,199.65,86.1455605]
[1753193645065,0.1,199.66,199.65,94.60788641]
[1753193645273,0.1,199.66,199.64,26.0]
[1753193645470,0.1,199.66,199.65,47.26232591]
[1753193646076,0.1,199.66,199.65,38.8]
[1753193646666,0.1,199.66,199.65,56.0855605]
[1753193646992,0.1,199.66,199.65,17.2855605]
[1753193647204,0.1,199.66,199.65,73.26232591]
[1753193647505,0.1,199.66,199.65,64.8]
[1753193648004,0.1,199.66,199.65,38.8]
[1753193648164,5.76865422,199.66,199.65,38.8]
[1753193648364,0.1,199.66,199.65,38.8]
[1753193648791,0.1,199.66,199.65,47.26232591]
[1753193649090,0.1,199.66,199.65,64.04700988]
[1753193649426,0.1,199.76,199.69,42.78468397]
[1753193649569,0.1,199.76,199.75,8.46232591]
[1753193649894,0.1,199.76,199.75,64.02700988]
[1753193650095,0.1,199.76,199.71,8.46232591]
[1753193650283,0.1,199.76,199.72,38.78]
[1753193650592,9.12232591,199.75,199.71,26.0]
[1753193650768,9.12232591,199.74,199.72,38.78]
[1753193651098,14.12908503,199.73,199.68,26.0]
[1753193651269,12.71307182,199.7,199.69,38.78]
[1753193651590,0.66,199.7,199.66,26.0]
[1753193651797,12.71307182,199.67,199.62,0.66211453]
[1753193651969,0.66,199.69,199.63,38.78]
[1753193652175,12.71307182,199.65,199.63,38.78]
[1753193652398,12.71307182,199.66,199.63,38.78]
[1753193652568,12.71307182,199.68,199.63,38.78]
[1753193652770,12.71307182,199.67,199.63,38.78]
[1753193652970,17.72158629,199.66,199.62,26.66211453]
[1753193653205,0.66,199.68,199.63,64.78]
[1753193653372,17.72111103,199.68,199.63,64.78]
[1753193653695,1.8896,199.76,199.66,12.71307182]
[1753193653696,12.71307182,199.73,199.66,12.71307182]
[1753193653881,12.71307182,199.73,199.67,51.49307182]
[1753193654079,0.1,199.76,199.7,26.0]
[1753193654282,0.1,199.76,199.73,12.71307182]
[1753193654478,0.1,199.76,199.74,52.11307182]
[1753193654680,0.1,199.76,199.75,52.15307182]
[1753193655208,0.1,199.76,199.75,26.0]
[1753193655375,0.1,199.76,199.75,39.42]
[1753193655583,0.1,199.76,199.75,39.4]
[1753193655791,0.1,199.76,199.75,69.46]
[1753193655994,0.1,199.76,199.75,68.89775579]
[1753193657096,0.1,199.76,199.75,73.90401361]
[1753193657398,0.1,199.76,199.75,65.66]
[1753193658279,0.1,199.76,199.75,78.37307182]
[1753193658680,0.1,199.76,199.75,26.0]
[1753193658906,0.1,199.76,199.74,12.71307182]
[1753193659407,0.1,199.76,199.73,26.0]
[1753193659782,0.1,199.76,199.74,52.29307182]
[1753193660179,0.1,199.76,199.75,52.29307182]
[1753193660379,0.1,199.76,199.75,39.58]
[1753193660715,0.1,199.76,199.74,12.71307182]
[1753193660916,0.1,199.76,199.73,26.0]
[1753193661093,13.37307182,199.75,199.69,12.71307182]
[1753193661411,13.37307182,199.75,199.7,39.58]
[1753193661608,0.66,199.74,199.71,39.56]
[1753193661804,13.37307182,199.74,199.67,49.36568397]
[1753193662006,12.71307182,199.71,199.68,39.56]
[1753193662208,0.66,199.7,199.68,39.56]
[1753193662415,13.37307182,199.69,199.66,36.06]
[1753193662624,13.37307182,199.68,199.67,39.58]
[1753193663112,13.37307182,199.68,199.61,0.60869156]
[1753193663113,5.00826363,199.67,199.61,0.60869156]
[1753193663312,12.71307182,199.65,199.62,39.56]
[1753193663512,12.71307182,199.63,199.61,0.60869156]
[1753193663718,12.71307182,199.62,199.61,0.60869156]
[1753193663898,0.66,199.66,199.61,40.14869156]
[1753193664099,17.52892271,199.67,199.61,40.14869156]
[1753193664507,12.71307182,199.65,199.61,40.14869156]
[1753193664711,0.66,199.64,199.61,40.14869156]
[1753193664895,12.71307182,199.65,199.61,40.14869156]
[1753193665105,0.66,199.63,199.61,40.14869156]
[1753193665316,5.00951808,199.62,199.61,39.54]
[1753193665499,8.28748708,199.65,199.61,39.54]
[1753193665822,12.71307182,199.68,199.61,52.25307182]
[1753193666005,12.71307182,199.65,199.61,39.54]
[1753193666321,26.0,199.7,199.62,39.56]
[1753193666531,12.71307182,199.64,199.63,39.56]
[1753193666698,12.71307182,199.64,199.63,39.62]
[1753193667203,12.71307182,199.66,199.63,39.62]
[1753193667404,0.66,199.65,199.63,39.62]
[1753193667608,0.66,199.64,199.63,39.62]
[1753193667824,13.37307182,199.64,199.63,39.62]
[1753193668702,13.37307182,199.64,199.62,39.58]
[1753193668902,0.66,199.63,199.62,39.58]
[1753193669704,5.66926714,199.63,199.62,39.58]
[1753193669902,5.66926714,199.63,199.58,12.71307182]
[1753193670237,5.00926714,199.63,199.59,52.25307182]
[1753193670423,5.00926714,199.63,199.6,52.25307182]
[1753193670922,5.00926714,199.63,199.61,39.54]
[1753193671824,26.0,199.68,199.62,13.37307182]
[1753193672028,5.008286,199.67,199.62,0.66]
[1753193672333,5.008286,199.67,199.64,12.71307182]
[1753193672506,5.008286,199.67,199.65,39.52]
[1753193673229,5.00796113,199.69,199.65,39.52]
[1753193673422,5.00754763,199.7,199.66,12.71307182]
[1753193673721,5.00675912,199.73,199.68,12.71307182]
[1753193673945,5.00675912,199.73,199.69,39.48]
[1753193674431,0.1,199.76,199.72,12.71307182]
[1753193674723,0.1,199.76,199.73,52.19307182]
[1753193674922,0.1,199.76,199.73,39.48]
[1753193675225,5.10606561,199.76,199.71,26.0]
[1753193675409,5.10606561,199.76,199.72,39.48]
[1753193675410,12.71307182,199.74,199.72,39.48]
[1753193675611,12.71307182,199.74,199.73,39.46]
[1753193675826,5.66650846,199.74,199.73,39.46]
[1753193676233,5.00650846,199.74,199.73,39.46]
[1753193676531,5.66650846,199.74,199.73,39.46]
[1753193677048,18.37958028,199.74,199.66,12.71307182]
[1753193677206,12.71307182,199.73,199.67,39.4]
[1753193677605,5.00650846,199.74,199.68,12.71307182]
[1753193678240,5.00650846,199.74,199.69,12.71307182]
[1753193678444,5.00650846,199.74,199.7,39.4]
[1753193678611,13.37307182,199.73,199.71,39.36]
[1753193678812,5.00650846,199.74,199.72,39.36]
[1753193679013,17.71958028,199.74,199.72,39.36]
[1753193679231,13.42851659,199.74,199.72,39.36]
[1753193679424,0.66,199.73,199.72,39.36]
[1753193679827,5.00700981,199.72,199.65,1.3787962]
[1753193680025,8.42200813,199.69,199.66,39.3]
[1753193680212,0.66,199.68,199.66,39.3]
[1753193680412,17.52453434,199.72,199.66,39.3]
[1753193680413,0.66,199.71,199.66,39.3]
[1753193680713,0.66,199.7,199.66,39.3]
[1753193680923,0.66,199.69,199.66,39.3]
[1753193681812,5.00801282,199.68,199.66,39.3]
[1753193682014,5.66801282,199.68,199.66,39.3]
[1753193682245,5.66801282,199.68,199.65,1.3787962]
[1753193682447,5.66801282,199.68,199.67,39.26]
[1753193684145,14.09002095,199.68,199.65,1.3787962]
[1753193684332,8.42200813,199.66,199.65,1.3787962]
[1753193684839,9.08200813,199.66,199.65,1.3787962]
[1753193685247,0.66,199.66,199.65,1.3787962]
[1753193685544,5.00801282,199.68,199.65,1.3787962]
[1753193686058,13.43002095,199.68,199.65,1.3787962]
[1753193686225,5.66801282,199.68,199.65,1.3787962]
[1753193686432,5.00801282,199.68,199.65,1.3787962]
[1753193686632,5.00801282,199.68,199.65,89.8787962]
[1753193687449,5.00751126,199.7,199.66,9.08200813]
[1753193687633,5.00751126,199.7,199.67,39.12]
[1753193687942,5.00700981,199.72,199.67,47.54200813]
[1753193688141,5.00700981,199.72,199.67,39.12]
[1753193688142,13.42901794,199.72,199.67,39.12]
[1753193688341,13.42901794,199.72,199.68,39.1]
[1753193688342,9.07200813,199.71,199.68,39.1]
[1753193688523,9.07200813,199.7,199.65,1.3787962]
[1753193688723,0.65,199.7,199.66,39.08]
[1753193688940,8.42200813,199.68,199.65,1.3787962]
[1753193689141,0.65,199.69,199.66,39.08]
[1753193689338,9.07200813,199.69,199.66,39.08]
[1753193689645,8.42200813,199.69,199.66,39.08]
[1753193689949,5.00801282,199.68,199.66,39.08]
[1753193690164,5.65801282,199.68,199.66,39.08]
[1753193690457,5.65801282,199.68,199.67,39.02]
[1753193690939,5.00801282,199.68,199.67,39.02]
[1753193691757,5.65801282,199.68,199.65,1.3787962]
[1753193691937,14.08002095,199.68,199.67,39.02]
[1753193692250,5.65801282,199.68,199.67,39.02]
[1753193692637,8.42200813,199.69,199.67,39.02]
[1753193692638,5.00779054,199.69,199.67,39.02]
[1753193692851,0.06,199.72,199.67,48.10200813]
[1753193693053,5.00731822,199.71,199.67,48.10200813]
[1753193693269,0.06,199.72,199.69,8.42200813]
[1753193693431,0.06,199.72,199.7,47.34200813]
[1753193693754,0.06,199.72,199.71,47.36200813]